bitfinex-derivatives/quotes_BNBF0:USTF0_20250111
["timestamp","ask_amount","ask_price","bid_price","bid_amount"]
[1736625097053,1.07545201,695.86,694.82,0.28784433]
[1736625097852,1.07545201,695.87,694.82,0.28784433]
[1736625102750,1.07545201,695.85,694.82,0.28784433]
[1736625104656,1.07545201,695.93,694.82,0.28784433]
[1736625105757,1.07545201,695.92,694.82,0.28784433]
[1736625106360,1.07545201,695.97,694.82,0.28784433]
[1736625107361,1.07545201,695.96,694.82,0.28784433]
[1736625108164,0.28735632,696.0,694.82,0.28784433]
[1736625108165,1.07545201,695.94,694.82,0.28784433]
[1736625110168,0.28735632,696.0,694.82,0.28784433]
[1736625110169,1.07545201,695.93,694.82,0.28784433]
[1736625110968,0.28735632,696.0,694.82,0.28784433]
[1736625110969,1.07545201,695.9,694.82,0.28784433]
[1736625112670,1.07545201,695.89,694.82,0.28784433]
[1736625113666,1.07545201,695.83,694.82,0.28784433]
[1736625114577,1.07545201,695.76,694.82,0.28784433]
[1736625115466,1.07545201,695.75,694.82,0.28784433]
[1736625117770,1.07545201,695.74,694.82,0.28784433]
[1736625118674,1.07545201,695.73,694.82,0.28784433]
[1736625119573,1.07545201,695.75,694.82,0.28784433]
[1736625120469,1.07545201,695.74,694.82,0.28784433]
[1736625121676,1.07545201,695.8,694.82,0.28784433]
[1736625122477,1.07545201,695.81,694.82,0.28784433]
[1736625123177,1.07545201,695.94,694.82,0.28784433]
[1736625125179,1.07545201,695.93,694.82,0.28784433]
[1736625126974,1.07545201,695.95,694.82,0.28784433]
[1736625127881,1.36280833,696.0,694.82,0.28784433]
[1736625128979,1.07545201,695.94,694.82,0.28784433]
[1736625129881,1.07545201,695.93,694.82,0.28784433]
[1736625131586,1.07545201,695.9,694.82,0.28784433]
[1736625133687,1.07545201,695.77,694.82,0.28784433]
[1736625134487,1.07545201,695.79,694.82,0.28784433]
[1736625136386,1.07545201,695.75,694.82,0.28784433]
[1736625137786,1.07545201,695.74,694.82,0.28784433]
[1736625138381,1.07545201,695.75,694.82,0.28784433]
[1736625139289,1.07545201,695.74,694.82,0.28784433]
[1736625140388,1.07545201,695.73,694.82,0.28784433]
[1736625141392,1.07545201,695.72,694.82,0.28784433]
[1736625142694,1.07545201,695.71,694.82,0.28784433]
[1736625144095,1.07545201,695.68,694.82,0.28784433]
[1736625145094,1.07545201,695.79,694.82,0.28784433]
[1736625146393,1.07545201,695.8,694.82,0.28784433]
[1736625147393,1.07545201,695.81,694.82,0.28784433]
[1736625148194,1.07545201,695.85,694.82,0.28784433]
[1736625149890,1.07545201,695.82,694.82,0.28784433]
[1736625151800,1.07545201,695.77,694.82,0.28784433]
[1736625159202,1.07545201,695.81,694.82,0.28784433]
[1736625162206,0.28735632,696.0,694.82,0.28784433]
[1736625162207,1.07545201,695.8,694.82,0.28784433]
[1736625163206,1.07545201,695.79,694.82,0.28784433]
[1736625163908,1.07545201,695.78,694.82,0.28784433]
[1736625165802,1.07545201,695.97,694.82,0.28784433]
[1736625165803,1.07545201,695.76,694.82,0.28784433]
[1736625167706,1.07545201,695.7,694.82,0.28784433]
[1736625168803,1.07545201,695.67,694.82,0.28784433]
[1736625169804,0.89031239,695.99,694.82,0.28784433]
[1736625169805,1.07545201,695.65,694.82,0.28784433]
[1736625170511,1.07545201,695.67,694.82,0.28784433]
[1736625175312,1.07545201,695.72,694.82,0.28784433]
[1736625176013,1.07545201,695.73,694.82,0.28784433]
[1736625176812,1.07545201,695.74,694.82,0.28784433]
[1736625178921,0.28735632,696.0,694.82,0.28784433]
[1736625178922,1.07545201,695.83,694.82,0.28784433]
[1736625182225,1.07545201,695.84,694.82,0.28784433]
[1736625183025,1.07545201,695.83,694.82,0.28784433]
[1736625183822,1.07545201,695.85,694.82,0.28784433]
[1736625186932,1.07545201,695.86,694.82,0.28784433]
[1736625188126,1.07545201,695.78,694.82,0.28784433]
[1736625189133,1.07545201,695.97,694.82,0.28784433]
[1736625189134,1.07545201,695.79,694.82,0.28784433]
[1736625189934,1.07545201,695.78,694.82,0.28784433]
[1736625191535,1.07545201,695.79,694.82,0.28784433]
[1736625193132,1.07545201,695.78,694.82,0.28784433]
[1736625194238,1.07545201,695.79,694.82,0.28784433]
[1736625196137,1.07545201,695.81,694.82,0.28784433]
[1736625196737,1.07545201,695.84,694.82,0.28784433]
[1736625199540,1.07545201,695.89,694.82,0.28784433]
[1736625200634,1.07545201,695.9,694.82,0.28784433]
[1736625201638,0.28735632,696.0,694.82,0.28784433]
[1736625236670,0.28735632,696.0,694.85,1.29026922]
[1736625236971,0.28735632,696.0,694.86,0.28782776]
[1736625237565,0.28735632,696.0,694.86,1.57809698]
[1736625238569,0.28735632,696.0,694.88,1.29026922]
[1736625239173,0.28735632,696.0,694.9,1.29026922]
[1736625240673,0.28735632,696.0,694.92,1.29026922]
[1736625241574,1.07545201,696.15,694.87,1.29026922]
[1736625241866,1.07545201,696.15,694.93,0.28779877]
[1736625242276,1.07545201,696.19,694.93,0.28779877]
[1736625243071,1.07545201,696.23,694.93,0.28779877]
[1736625244071,1.07545201,696.24,694.93,0.28779877]
[1736625246569,1.07545201,696.23,694.93,0.28779877]
[1736625247577,1.07545201,696.22,694.93,0.28779877]
[1736625248676,1.07545201,696.21,694.93,0.28779877]
[1736625249479,1.07545201,696.24,694.93,1.57806799]
[1736625250180,1.07545201,696.24,694.93,0.28779877]
[1736625250977,1.07545201,696.28,694.93,0.28779877]
[1736625254974,1.07545201,696.29,694.93,0.28779877]
[1736625256881,1.07545201,696.28,694.93,0.28779877]
[1736625258182,1.07545201,696.38,694.93,0.28779877]
[1736625258889,1.07545201,696.37,694.93,0.28779877]
[1736625262295,1.50060908,696.73,694.93,0.28779877]
[1736625262296,1.07545201,696.39,694.93,0.28779877]
[1736625263594,1.07545201,696.48,694.93,0.28779877]
[1736625264796,1.07545201,696.53,694.93,0.28779877]
[1736625265394,0.26407263,696.52,694.93,0.28779877]
[1736625265589,1.07545201,696.54,694.93,0.28779877]
[1736625266595,1.07545201,696.53,694.93,0.28779877]
[1736625268396,1.07545201,696.54,694.93,0.28779877]
[1736625268997,1.07545201,696.55,694.93,0.28779877]
[1736625272300,1.07545201,696.53,694.93,0.28779877]
[1736625273594,1.07545201,696.48,694.93,0.28779877]
[1736625274400,1.07545201,696.47,694.93,0.28779877]
[1736625276301,1.07545201,696.54,694.93,0.28779877]
[1736625276899,1.07545201,696.53,694.93,0.28779877]
[1736625278205,1.07545201,696.57,694.93,0.28779877]
[1736625279103,1.07545201,696.59,694.93,0.28779877]
[1736625279806,1.07545201,696.58,694.93,0.28779877]
[1736625280900,1.07545201,696.61,694.93,0.28779877]
[1736625281205,1.50038803,696.8,694.93,0.28779877]
[1736625281405,0.26402269,696.79,694.93,0.28779877]
[1736625282403,0.28703464,696.78,694.93,0.28779877]
[1736625282707,1.07383863,696.63,694.93,0.28779877]
[1736625283305,1.07383863,696.65,694.93,0.28779877]
[1736625284309,1.07383863,696.66,694.93,0.28779877]
[1736625285207,0.2640145,696.65,694.93,0.28779877]
[1736625285409,0.2640145,696.64,694.93,0.28779877]
[1736625285609,0.2640145,696.63,694.93,0.28779877]
[1736625285806,0.2640145,696.62,694.93,0.28779877]
[1736625286004,1.07383863,696.62,694.93,0.28779877]
[1736625287013,1.07383863,696.63,694.94,1.28588077]
[1736625287206,1.07383863,696.63,694.96,0.28778634]
[1736625287207,0.26401482,696.62,694.96,0.28778634]
[1736625287713,1.07383863,696.62,694.97,1.28588077]
[1736625288212,1.07383863,696.62,694.99,0.28777392]
[1736625288611,1.07383863,696.73,694.99,0.28777392]
[1736625288808,0.2640092,696.72,694.99,0.28777392]
[1736625289508,1.07383863,696.73,694.99,0.28777392]
[1736625289711,1.07383863,696.71,694.99,0.28777392]
[1736625293217,1.07383863,696.7,694.99,0.28777392]
[1736625294315,0.28703464,696.78,694.99,0.28777392]
[1736625294316,1.07383863,696.66,694.99,0.28777392]
[1736625295317,1.07383863,696.7,694.99,0.28777392]
[1736625296320,1.07383863,696.71,694.99,0.28777392]
[1736625296522,0.26397252,696.7,694.99,0.28777392]
[1736625296822,1.07383863,696.71,694.99,0.28777392]
[1736625297319,0.28703464,696.78,694.99,0.28777392]
[1736625309122,0.28703464,696.78,695.1,1.28588077]
[1736625309325,0.28703464,696.78,695.12,0.2877201]
[1736625310827,0.28703464,696.78,695.12,1.57360087]
[1736625311835,0.28703464,696.78,695.14,1.28588077]
[1736625312128,0.28703464,696.78,695.16,0.28770355]
[1736625317834,0.28703464,696.78,695.16,1.57358432]
[1736625318437,0.28703464,696.78,695.16,0.28770355]
[1736625319244,0.28703464,696.78,695.21,1.28588077]
[1736625319539,0.28703464,696.78,695.23,0.28767458]
[1736625320944,0.28703464,696.78,695.23,1.57355535]
[1736625322044,0.28703464,696.78,695.24,1.28588077]
[1736625322245,0.28703464,696.78,695.26,0.28766216]
[1736625322645,1.36087327,696.78,695.26,0.28766216]
[1736625324447,1.36087327,696.78,695.31,1.28588077]
[1736625324448,0.28703464,696.78,695.31,1.28588077]
[1736625324946,0.28703464,696.78,695.32,0.28763734]
[1736625325748,0.28703464,696.78,695.34,1.28588077]
[1736625325944,0.28703464,696.78,695.35,0.28762493]
[1736625326745,1.33777883,696.77,695.38,1.28588077]
[1736625326945,1.33777883,696.77,695.39,0.28760839]
[1736625326946,0.2639402,696.76,695.39,0.28760839]
[1736625327742,1.07383863,696.77,695.39,0.28760839]
[1736625328049,1.07383863,696.75,695.42,1.28588077]
[1736625328243,1.07383863,696.75,695.43,0.28759184]
[1736625328646,0.28703464,696.78,695.43,0.28759184]
[1736625328647,1.07383863,696.74,695.44,1.28588077]
[1736625328949,1.07383863,696.74,695.45,0.28758357]
[1736625329847,1.07383863,696.71,695.46,1.28588077]
[1736625330051,1.07383863,696.71,695.47,0.2875753]
[1736625330450,1.07383863,696.7,695.47,1.57345607]
[1736625331855,1.07383863,696.68,695.49,1.28588077]
[1736625332951,1.07383863,696.59,695.47,0.2875753]
[1736625334149,1.07383863,696.6,695.47,0.2875753]
[1736625336650,1.07383863,696.6,695.47,3.15081945]
[1736625339553,1.07383863,696.65,695.51,1.28588077]
[1736625340561,1.07383863,696.68,695.53,1.28588077]
[1736625341459,1.07383863,696.69,695.53,1.28588077]
[1736625343754,1.07383863,696.7,695.53,1.28588077]
[1736625344555,1.07383863,696.7,695.53,4.14912492]
[1736625346161,1.07383863,696.7,695.54,3.05870667]
[1736625346363,1.07383863,696.7,695.54,5.92195082]
[1736625346559,1.07383863,696.65,695.55,2.86324415]
[1736625347259,1.07383863,696.64,695.55,2.86324415]
[1736625347858,1.07383863,696.64,695.49,2.86324415]
[1736625348063,1.07383863,696.64,695.56,0.28753809]
[1736625348465,0.28703464,696.78,695.56,0.28753809]
[1736625348466,1.07383863,696.66,695.56,0.28753809]
[1736625349563,0.28703464,696.78,695.56,0.28753809]
[1736625373174,1.07383863,696.82,695.56,0.28753809]
[1736625374081,1.07383863,697.24,695.56,0.28753809]
[1736625374281,0.28684938,697.23,695.56,0.28753809]
[1736625374878,1.36068801,697.23,695.56,0.28753809]
[1736625375883,1.07383863,697.22,695.56,0.28753809]
[1736625376181,0.28685761,697.21,695.56,0.28753809]
[1736625389988,0.26382347,697.2,695.56,0.28753809]
[1736625391789,0.26382546,697.19,695.56,0.28753809]
[1736625391990,0.26382546,697.18,695.56,0.28753809]
[1736625392292,0.26382546,697.17,695.56,0.28753809]
[1736625392491,0.26382546,697.16,695.56,0.28753809]
[1736625392690,0.26382546,697.15,695.56,0.28753809]
[1736625392891,0.26382546,697.14,695.56,0.28753809]
[1736625393091,0.28685761,697.21,695.56,0.28753809]
[1736625393287,0.26382112,697.2,695.56,0.28753809]
[1736625394492,0.2638242,697.19,695.56,0.28753809]
[1736625394794,0.2638242,697.18,695.56,0.28753809]
[1736625395093,0.2638242,697.17,695.56,0.28753809]
[1736625395295,0.2638242,697.16,695.56,0.28753809]
[1736625395493,0.2638242,697.15,695.56,0.28753809]
[1736625395693,0.2638242,697.14,695.56,0.28753809]
[1736625395994,0.2638242,697.13,695.56,0.28753809]
[1736625396190,0.28685761,697.21,695.56,0.28753809]
[1736625396191,0.2638242,697.12,695.56,0.28753809]
[1736625396393,0.2638242,697.11,695.56,0.28753809]
[1736625396592,0.2638242,697.1,695.56,0.28753809]
[1736625396795,0.2638242,697.09,695.56,0.28753809]
[1736625396988,0.2638242,697.08,695.56,0.28753809]
[1736625397194,0.28685761,697.21,695.56,0.28753809]
[1736625397394,0.26383471,697.2,695.56,0.28753809]
[1736625397594,0.28686584,697.19,695.56,0.28753809]
[1736625397795,0.26383471,697.18,695.56,0.28753809]
[1736625398097,0.28687407,697.17,695.56,0.28753809]
[1736625398397,0.26383471,697.16,695.56,0.28753809]
[1736625398692,0.26383793,697.15,695.56,0.28753809]
[1736625399989,0.28687819,697.16,695.56,0.28753809]
[1736625400190,0.26383123,697.15,695.56,0.28753809]
[1736625406394,0.28688642,697.14,695.56,0.28753809]
[1736625406596,0.26383123,697.13,695.56,0.28753809]
[1736625406797,0.28689465,697.12,695.56,0.28753809]
[1736625406997,0.26383123,697.11,695.56,0.28753809]
[1736625407196,0.28690288,697.1,695.56,0.28753809]
[1736625407498,0.26383123,697.09,695.56,0.28753809]
[1736625408198,0.26384745,697.08,695.56,0.28753809]
[1736625408399,0.26384745,697.07,695.56,0.28753809]
[1736625408599,0.28690288,697.1,695.56,3.33520535]
[1736625408802,0.26384727,697.09,695.56,6.18820343]
[1736625409004,0.26384727,697.09,695.57,2.85299808]
[1736625409195,0.26384727,697.09,695.58,0.28752983]
[1736625411001,0.26385112,697.08,695.58,0.28752983]
[1736625411201,0.26385112,697.07,695.58,0.28752983]
[1736625411402,0.26385112,697.06,695.58,1.5734106]
[1736625411702,0.26385112,697.05,695.58,1.5734106]
[1736625411903,0.26385112,697.04,695.58,1.5734106]
[1736625412103,0.26385112,697.03,695.61,1.28588077]
[1736625412301,0.26385112,697.02,695.61,1.28588077]
[1736625412497,0.26385112,697.01,695.62,0.28751329]
[1736625412699,0.26385112,697.0,695.62,0.28751329]
[1736625412903,1.07383863,697.07,695.62,0.28751329]
[1736625413099,0.26385688,697.06,695.62,0.28751329]
[1736625413608,0.26385459,697.05,695.62,0.28751329]
[1736625413906,0.26385459,697.04,695.62,0.28751329]
[1736625414106,0.26385459,697.03,695.62,0.28751329]
[1736625414301,1.07383863,697.07,695.62,0.28751329]
[1736625414606,0.26385707,697.06,695.65,1.28588077]
[1736625414805,0.26385707,697.05,695.66,0.28749676]
[1736625415007,0.26385707,697.04,695.66,0.28749676]
[1736625415207,0.28690288,697.1,695.66,0.28749676]
[1736625416203,0.26386088,697.09,695.66,0.28749676]
[1736625416404,0.28690288,697.1,695.66,0.28749676]
[1736625416603,0.26386071,697.09,695.66,0.28749676]
[1736625418909,0.28690288,697.1,695.66,0.28749676]
[1736625419409,0.2638624,697.09,695.66,0.28749676]
[1736625427510,0.28690288,697.1,695.66,0.28749676]
[1736625459137,0.28690288,697.1,695.66,1.57337753]
[1736625460638,0.28690288,697.1,695.66,0.28749676]
[1736625461133,0.28690288,697.1,695.67,1.28588077]
[1736625461639,0.28690288,697.1,695.69,0.28748436]
[1736625463544,0.28690288,697.1,695.74,1.28588077]
[1736625463745,0.28690288,697.1,695.75,0.28745957]
[1736625475162,0.28690288,697.1,695.82,1.28588077]
[1736625475460,0.28690288,697.1,695.83,0.28742652]
[1736625482066,0.28690288,697.1,695.84,1.28588077]
[1736625482264,0.28690288,697.1,695.85,0.28741826]
[1736625482465,1.07383863,697.35,695.85,0.28741826]
[1736625482665,0.26375475,697.34,695.85,0.28741826]
[1736625482867,0.26375475,697.34,695.9,1.28588077]
[1736625483166,0.26375475,697.33,695.91,0.28739348]
[1736625483367,0.26375475,697.32,695.91,0.28739348]
[1736625483570,0.26375475,697.31,695.91,0.28739348]
[1736625483865,1.07383863,697.4,695.91,1.57327425]
[1736625484068,0.26375297,697.39,695.91,1.57327425]
[1736625484769,0.26375297,697.39,695.91,0.28739348]
[1736625484969,0.26375297,697.38,695.91,0.28739348]
[1736625485169,0.26375297,697.37,695.91,0.28739348]
[1736625485469,0.26375297,697.36,695.91,0.28739348]
[1736625485670,0.26375297,697.35,695.96,1.28588077]
[1736625485970,0.26375297,697.34,695.97,0.2873687]
[1736625486170,0.26375297,697.33,695.97,0.2873687]
[1736625486365,1.49851978,697.6,695.97,0.2873687]
[1736625486366,1.07383863,697.36,695.97,0.2873687]
[1736625486571,0.26375049,697.35,695.97,0.2873687]
[1736625487465,0.26375049,697.34,695.97,0.2873687]
[1736625487670,0.26375049,697.33,695.97,0.2873687]
[1736625487971,0.26375049,697.32,695.97,0.2873687]
[1736625488170,0.26375049,697.31,695.97,0.2873687]
[1736625488371,0.26375049,697.3,695.97,0.2873687]
[1736625488571,1.07383863,697.41,695.97,0.2873687]
[1736625488872,0.2637496,697.4,695.97,0.2873687]
[1736625489067,0.2637496,697.39,695.97,0.2873687]
[1736625489271,0.2637497,697.38,695.97,0.2873687]
[1736625489568,1.07383863,697.34,695.97,0.2873687]
[1736625489773,0.2637497,697.33,695.97,0.2873687]
[1736625491672,0.2637497,697.32,695.97,0.2873687]
[1736625491972,0.2637505,697.31,695.97,0.2873687]
[1736625492173,0.2637505,697.3,695.97,0.2873687]
[1736625492475,0.2637505,697.29,695.97,0.2873687]
[1736625492673,1.07383863,697.35,695.97,0.2873687]
[1736625492871,0.26374991,697.34,695.97,0.2873687]
[1736625493273,1.33758854,697.34,695.97,0.2873687]
[1736625493473,0.26374991,697.33,695.97,0.2873687]
[1736625494373,1.07383863,697.32,695.97,0.2873687]
[1736625494769,0.26374957,697.31,695.97,0.2873687]
[1736625495373,1.07383863,697.33,695.97,0.2873687]
[1736625495576,0.26374945,697.32,695.97,0.2873687]
[1736625496981,1.07479385,697.14,695.97,0.2873687]
[1736625498073,1.07479385,697.15,695.97,0.2873687]
[1736625499382,1.07479385,697.14,695.97,0.2873687]
[1736625504484,1.07479385,697.21,695.97,0.2873687]
[1736625506784,0.88910142,697.59,695.97,0.2873687]
[1736625506785,1.07479385,697.19,695.97,0.2873687]
[1736625507781,0.88910142,697.59,695.97,0.2873687]
[1736625507782,1.07479385,697.18,695.97,1.57324947]
[1736625509690,1.07479385,697.17,695.97,1.57324947]
[1736625510591,1.07479385,697.16,695.98,1.28588077]
[1736625510792,1.07479385,697.16,695.99,0.28736045]
[1736625512294,1.07479385,697.14,695.99,0.28736045]
[1736625512996,1.07479385,697.08,695.99,0.28736045]
[1736625513990,1.07479385,697.07,695.99,0.28736045]
[1736625516094,1.07479385,697.08,695.99,0.28736045]
[1736625518197,1.07479385,697.07,695.99,0.28736045]
[1736625519801,1.07479385,697.13,696.01,1.28588077]
[1736625520701,1.07479385,697.13,696.02,1.28588077]
[1736625522502,1.07479385,697.14,696.02,1.28588077]
[1736625523801,1.07479385,697.14,696.02,4.13090851]
[1736625524303,1.07479385,697.14,696.03,1.28588077]
[1736625525204,1.07479385,697.14,696.03,4.33354803]
[1736625525503,1.07479385,697.14,696.04,2.84502774]
[1736625527805,1.07479385,697.13,696.04,2.84502774]
[1736625529007,1.07479385,697.08,696.03,2.84502774]
[1736625529810,1.07479385,697.09,696.03,2.84502774]
[1736625530704,1.07479385,697.08,695.99,3.13238819]
[1736625531712,1.07479385,697.08,695.99,0.28736045]
[1736625532611,1.07479385,697.18,695.99,0.28736045]
[1736625533612,1.07479385,697.16,695.99,0.28736045]
[1736625534310,1.07479385,697.17,695.99,0.28736045]
[1736625535513,1.07479385,697.2,695.99,0.28736045]
[1736625539516,1.07479385,697.24,695.99,0.28736045]
[1736625542615,1.07479385,697.2,695.99,0.28736045]
[1736625543618,1.07479385,697.26,695.99,0.28736045]
[1736625544412,1.07479385,697.25,695.99,0.28736045]
[1736625547118,1.07479385,697.24,695.99,0.28736045]
[1736625547917,1.07479385,697.25,695.99,0.28736045]
[1736625548916,1.07479385,697.2,695.99,0.28736045]
[1736625551123,0.88910142,697.57,695.99,0.28736045]
[1736625551124,1.07479385,697.16,695.99,0.28736045]
[1736625552926,1.07479385,697.17,695.99,0.28736045]
[1736625553624,1.07479385,697.11,695.99,0.28736045]
[1736625554724,1.07383863,697.3,695.99,0.28736045]
[1736625554725,1.07479385,697.1,695.99,0.28736045]
[1736625555525,1.07479385,697.08,695.99,0.28736045]
[1736625557025,1.07479385,697.05,695.99,0.28736045]
[1736625557823,0.88910142,697.55,695.99,1.57324122]
[1736625557824,1.07479385,697.12,695.99,1.57324122]
[1736625558526,1.07479385,697.13,695.99,1.57324122]
[1736625559726,1.07479385,697.13,695.99,0.28736045]
[1736625561323,1.07383863,697.4,695.99,0.28736045]
[1736625561324,1.07479385,697.17,695.99,0.28736045]
[1736625562531,1.07479385,697.2,695.99,0.28736045]
[1736625564825,1.07479385,697.13,695.99,0.28736045]
[1736625566434,1.07479385,697.14,695.99,0.28736045]
[1736625567532,1.07479385,697.15,695.99,0.28736045]
[1736625568532,1.07479385,697.16,695.99,0.28736045]
[1736625571527,1.07479385,697.12,695.99,0.28736045]
[1736625572330,1.07479385,697.15,695.99,0.28736045]
[1736625574435,1.07479385,697.14,695.99,0.28736045]
[1736625577540,1.07479385,697.15,695.99,0.28736045]
[1736625578338,1.07479385,697.16,695.99,0.28736045]
[1736625578839,1.07479385,697.16,695.99,3.33502771]
[1736625579039,1.07479385,697.16,695.99,6.18068716]
[1736625579334,1.07479385,697.16,696.0,2.84565945]
[1736625579539,0.88910142,697.55,696.0,2.84565945]
[1736625579540,1.07479385,697.15,696.0,2.84565945]
[1736625580138,1.07479385,697.15,695.99,0.28736045]
[1736625581439,1.07479385,697.17,695.99,0.28736045]
[1736625582240,0.88910142,697.55,695.99,0.28736045]
[1736625582241,1.07479385,697.16,695.99,0.28736045]
[1736625584343,1.07479385,697.15,695.99,0.28736045]
[1736625585043,1.07479385,697.16,695.99,0.28736045]
[1736625585944,1.07479385,697.15,695.99,0.28736045]
[1736625587644,1.07479385,697.14,695.99,0.28736045]
[1736625588648,1.07479385,697.13,695.99,0.28736045]
[1736625589450,1.07479385,697.1,695.99,0.28736045]
[1736625590453,1.28860636,697.52,695.99,0.28736045]
[1736625590454,1.07479385,697.11,695.99,0.28736045]
[1736625591349,1.07479385,697.1,695.99,0.28736045]
[1736625594954,1.07479385,697.14,695.99,1.57324122]
[1736625597459,1.07479385,697.14,696.0,1.28588077]
[1736625599760,1.07479385,697.14,696.0,2.29210277]
[1736625599954,1.07479385,697.14,696.0,4.13154022]
[1736625601260,1.07479385,697.14,696.01,1.28588077]
[1736625601461,1.07479385,697.14,696.02,0.28734806]
[1736625601661,1.07479385,697.14,696.02,1.29357006]
[1736625601859,1.07479385,697.14,696.02,3.13300751]
[1736625602461,1.07479385,697.09,696.02,3.13300751]
[1736625603360,1.07479385,697.1,696.02,3.13300751]
[1736625603559,1.07479385,697.1,696.02,0.28734806]
[1736625604156,1.07479385,697.11,696.02,0.28734806]
[1736625605863,1.07479385,697.36,696.02,0.28734806]
[1736625607060,1.07479385,697.4,696.02,0.28734806]
[1736625608568,1.07479385,697.42,696.02,0.28734806]
[1736625609770,1.07479385,697.69,696.02,0.28734806]
[1736625610468,1.49840149,697.78,696.02,0.28734806]
[1736625610473,0.26370432,697.55,696.02,0.28734806]
[1736625610673,0.2867219,697.54,696.02,0.28734806]
[1736625611274,1.07479385,697.44,696.02,0.28734806]
[1736625612073,1.33850891,697.43,696.02,0.28734806]
[1736625612275,0.26371506,697.42,696.02,0.28734806]
[1736625613176,1.07479385,697.26,696.02,0.28734806]
[1736625614471,1.07383863,697.53,696.02,0.28734806]
[1736625614472,1.07479385,697.24,696.02,0.28734806]
[1736625614974,1.07479385,697.28,696.02,0.28734806]
[1736625616069,1.07479385,697.29,696.02,0.28734806]
[1736625617574,1.07479385,697.26,696.02,0.28734806]
[1736625618676,1.07479385,697.29,696.02,0.28734806]
[1736625621372,1.07479385,697.31,696.02,0.28734806]
[1736625623679,1.07479385,697.28,696.02,0.28734806]
[1736625625775,1.07479385,697.29,696.02,0.28734806]
[1736625627181,0.88876684,697.53,696.02,0.28734806]
[1736625627182,1.07479385,697.3,696.02,0.28734806]
[1736625627881,1.07479385,697.34,696.02,0.28734806]
[1736625629978,1.07479385,697.35,696.02,0.28734806]
[1736625632984,1.36056053,697.54,696.02,0.28734806]
[1736625632985,1.07479385,697.47,696.02,0.28734806]
[1736625633886,0.2867219,697.54,696.02,0.28734806]
[1736625633887,1.07479385,697.52,696.02,0.28734806]
[1736625635086,1.07479385,697.53,696.02,0.28734806]
[1736625635987,0.2867219,697.54,696.02,0.28734806]
[1736625636889,1.36151575,697.54,696.02,0.28734806]
[1736625637887,0.2867219,697.54,696.02,0.28734806]
[1736625640691,1.07479385,697.51,696.02,0.28734806]
[1736625642695,1.07479385,697.48,696.02,0.28734806]
[1736625643296,1.07479385,697.47,696.02,0.28734806]
[1736625645797,1.07479385,697.48,696.02,0.28734806]
[1736625648103,0.2867219,697.54,696.02,0.28734806]
[1736625648104,1.07479385,697.52,696.02,0.28734806]
[1736625648305,0.26366999,697.51,696.02,0.28734806]
[1736625649101,1.07479385,697.48,696.05,1.28588077]
[1736625649300,1.07479385,697.48,696.06,0.28733155]
[1736625649805,1.07479385,697.47,696.06,1.57321232]
[1736625651201,1.07479385,697.47,696.07,1.28588077]
[1736625651405,1.07479385,697.47,696.08,0.28732329]
[1736625652111,0.2867219,697.54,696.08,0.28732329]
[1736625652112,1.07479385,697.46,696.08,0.28732329]
[1736625653509,1.07479385,697.45,696.09,1.28588077]
[1736625653709,1.07479385,697.45,696.1,0.28731504]
[1736625654411,1.07479385,697.44,696.1,0.28731504]
[1736625655411,1.07479385,697.44,696.1,1.57319581]
[1736625656311,1.07479385,697.4,696.1,0.28731504]
[1736625658606,1.07479385,697.39,696.1,0.28731504]
[1736625660408,1.07479385,697.38,696.1,3.13784646]
[1736625661173,1.07479385,697.38,696.1,1.29929413]
[1736625661311,1.07479385,697.37,696.1,3.3349823]
[1736625662011,0.2867219,697.54,696.1,3.3349823]
[1736625662012,1.07479385,697.46,696.1,3.3349823]
[1736625662811,1.07479385,697.49,696.1,3.3349823]
[1736625663508,1.07479385,697.49,696.1,0.28731504]
[1736625664416,1.07479385,697.5,696.1,0.28731504]
[1736625665114,1.07479385,697.49,696.1,0.28731504]
[1736625665811,1.07479385,697.5,696.1,0.28731504]
[1736625669511,1.07479385,697.52,696.1,0.28731504]
[1736625670416,0.2867219,697.54,696.1,0.28731504]
[1736625670417,1.07479385,697.5,696.1,0.28731504]
[1736625671717,1.07479385,697.49,696.1,0.28731504]
[1736625672517,1.07479385,697.5,696.1,0.28731504]
[1736625673419,0.2867219,697.54,696.1,0.28731504]
[1736625680831,1.07479385,697.53,696.1,0.28731504]
[1736625681929,0.2867219,697.54,696.1,0.28731504]
[1736625683629,1.07479385,697.49,696.1,0.28731504]
[1736625684523,1.36151575,697.54,696.14,1.28588077]
[1736625684728,1.36151575,697.54,696.15,0.2872944]
[1736625685929,1.07479385,697.51,696.16,1.28588077]
[1736625687127,1.07479385,697.47,696.15,0.2872944]
[1736625687926,1.07479385,697.46,696.15,0.2872944]
[1736625688731,1.07479385,697.46,696.04,2.84665305]
[1736625689932,1.07479385,697.43,696.09,1.28588077]
[1736625691929,1.07479385,697.43,696.08,1.28588077]
[1736625692736,1.07479385,697.37,696.06,2.84665305]
[1736625694935,1.07479385,697.36,696.06,2.84665305]
[1736625695335,1.07479385,697.36,696.03,2.84665305]
[1736625695536,1.07479385,697.37,696.03,2.84665305]
[1736625696637,1.07479385,697.36,696.03,2.84665305]
[1736625697439,1.07479385,697.35,696.03,2.84665305]
[1736625698739,1.07479385,697.42,696.03,2.84665305]
[1736625699038,1.07479385,697.42,696.02,2.84665305]
[1736625699540,1.07479385,697.48,696.02,2.84665305]